bitfinex-derivatives/quotes_ETHF0:USTF0_20251012
["timestamp","ask_amount","ask_price","bid_price","bid_amount"]
[1760250582597,0.5852,3831.9,3831.8,0.2413]
[1760250582795,0.2359,3831.9,3831.8,0.8202]
[1760250583701,0.4684,3831.9,3831.8,0.8202]
[1760250584092,0.2359,3831.9,3831.8,0.8202]
[1760250584298,0.2359,3832.2,3832.1,0.8202]
[1760250584597,0.8177,3832.2,3832.1,1.28954]
[1760250587199,0.8177,3832.2,3832.1,1.05904]
[1760250587402,0.8177,3832.2,3831.6,0.3484]
[1760250587603,0.8177,3832.2,3832.1,0.46934]
[1760250588706,0.8177,3832.2,3831.5,0.133]
[1760250588707,0.3493,3832.4,3832.2,0.46931]
[1760250588912,0.8177,3832.3,3832.2,1.05901]
[1760250589208,0.3493,3832.2,3832.1,0.46933]
[1760250589404,0.8177,3832.2,3832.1,0.46933]
[1760250594116,1.44304255,3832.2,3832.1,0.46933]
[1760250597215,1.42025,3832.0,3831.6,0.4694]
[1760250597410,0.81867,3831.9,3831.5,0.4694]
[1760250597715,0.8177,3831.7,3831.6,0.4694]
[1760250598416,0.8177,3831.7,3831.6,0.8178]
[1760250598613,0.8177,3831.7,3831.6,0.4694]
[1760250599011,1.44318002,3831.7,3831.6,0.4694]
[1760250599208,0.8177,3831.7,3831.6,0.4694]
[1760250602917,0.5852,3831.7,3831.6,1.2896]
[1760250603110,0.9509,3832.0,3831.4,0.46942]
[1760250603310,0.6016,3832.0,3831.2,0.3484]
[1760250603512,0.2359,3831.3,3831.2,1.28965]
[1760250604820,0.2359,3831.3,3831.2,0.5897]
[1760250604821,0.8177,3831.3,3831.2,0.5897]
[1760250605027,0.8177,3831.2,3831.1,0.82280393]
[1760250605229,0.4684,3831.2,3831.1,0.82280393]
[1760250605424,0.2359,3831.2,3831.1,0.82280393]
[1760250605724,0.4684,3831.6,3831.5,0.9532]
[1760250605927,0.8177,3831.6,3831.5,0.9532]
[1760250606120,0.8177,3831.6,3831.5,0.8202]
[1760250606322,0.8177,3831.6,3831.5,0.5897]
[1760250606729,0.81872,3831.4,3831.3,0.5897]
[1760250606918,1.28712,3831.4,3831.3,0.5897]
[1760250608232,0.8177,3831.2,3831.1,0.00260393]
[1760250612931,0.339,3830.4,3830.2,0.80236]
[1760250613229,0.7992,3830.3,3830.2,1.03157]
[1760250613530,0.7992,3830.3,3830.2,1.25947]
[1760250613927,0.7992,3830.3,3830.2,1.26227954]
[1760250614130,0.7992,3830.3,3830.2,0.79270954]
[1760250614333,0.7992,3830.3,3830.2,0.56480954]
[1760250614735,0.7992,3830.3,3830.2,0.23200954]
[1760250615136,0.7992,3830.3,3830.2,0.00280954]
[1760250619540,0.7992,3830.3,3829.5,1.16465]
[1760250619541,0.7992,3829.6,3829.5,1.16465]
[1760250619731,0.339,3829.5,3829.0,1.98352936]
[1760250619936,0.7992,3829.3,3829.2,0.2292]
[1760250620541,0.8019631,3829.3,3829.2,0.23118599]
[1760250621047,0.8019631,3829.3,3829.2,0.00198599]
[1760250622140,0.7992,3828.8,3828.3,0.3328]
[1760250622344,0.2362,3828.2,3828.1,0.7899]
[1760250622736,0.2362,3828.2,3828.1,1.25973]
[1760250622942,0.2362,3828.2,3828.1,0.562]
[1760250622943,0.7992,3828.2,3828.1,0.562]
[1760250623142,0.7992,3828.2,3828.1,0.79270412]
[1760250624142,0.7992,3828.2,3828.1,0.56480412]
[1760250624347,0.4602,3828.2,3828.1,0.79270412]
[1760250624942,0.2362,3828.5,3828.1,0.33560412]
[1760250625146,0.2362,3828.8,3828.7,0.92684]
[1760250625648,0.2362,3828.8,3828.7,1.25964]
[1760250625839,0.8019631,3829.3,3829.2,0.562]
[1760250626038,0.8019631,3829.3,3829.2,0.7899]
[1760250626237,0.46953,3830.6,3829.9,0.4696]
[1760250626444,0.7992,3830.0,3829.9,1.2595]
[1760250626638,0.339,3829.9,3829.2,0.3328]
[1760250626844,0.4602,3829.1,3829.0,0.562]
[1760250627043,0.4602,3829.1,3829.0,0.9318]
[1760250627248,0.7992,3829.9,3829.8,0.2292]
[1760250627443,0.8018188,3829.9,3829.8,0.562]
[1760250627843,0.46962,3829.8,3829.4,0.3328]
[1760250628051,0.4602,3829.5,3829.1,0.3328]
[1760250628245,0.7992,3829.2,3829.1,0.562]
[1760250628448,0.4602,3828.9,3828.8,0.80253]
[1760250628649,0.7992,3828.9,3828.8,1.03173]
[1760250628851,0.4602,3828.9,3828.8,1.25963]
[1760250629353,0.2362,3829.3,3829.2,1.25959]
[1760250629647,0.7992,3829.7,3829.6,0.562]
[1760250630040,0.339,3829.3,3829.1,0.4697]
[1760250630246,0.7992,3829.0,3828.9,0.562]
[1760250630446,0.7992,3829.0,3828.9,0.7899]
[1760250630650,0.7992,3829.0,3828.9,0.562]
[1760250630847,0.4602,3829.0,3828.7,0.46975]
[1760250631052,0.7992,3828.9,3828.8,0.3328]
[1760250631251,0.7992,3828.9,3828.8,0.562]
[1760250631450,0.7992,3828.9,3828.8,0.7899]
[1760250631656,0.4602,3828.9,3828.8,0.7899]
[1760250632057,0.2362,3828.9,3828.8,0.7899]
[1760250632851,0.4602,3828.9,3828.8,0.7899]
[1760250634256,0.7992,3828.9,3828.8,0.7899]
[1760250634556,0.7992,3828.9,3828.8,0.562]
[1760250634757,0.7992,3828.9,3828.7,0.46975]
[1760250635054,0.7992,3828.8,3828.7,0.46975]
[1760250635449,0.7992,3828.8,3828.7,0.80255]
[1760250635648,0.7992,3828.8,3828.7,1.03175]
[1760250636949,0.46965,3829.6,3829.2,0.69889]
[1760250637152,0.7992,3829.4,3829.3,0.7899]
[1760250637352,0.4602,3829.4,3829.3,0.7899]
[1760250637661,0.4602,3829.4,3829.3,1.25958]
[1760250637955,0.7992,3829.4,3829.1,0.4697]
[1760250638156,0.5752,3828.9,3828.8,0.80253]
[1760250638458,0.339,3828.8,3828.6,0.80255]
[1760250638757,0.7992,3828.7,3828.6,0.80255]
[1760250638959,0.7992,3828.7,3827.7,1.17469]
[1760250639161,0.2362,3828.2,3828.1,0.45990412]
[1760250639359,0.2362,3828.2,3828.1,0.79270412]
[1760250639752,0.339,3828.6,3828.5,0.46978]
[1760250639958,0.8063,3828.6,3828.5,1.06838]
[1760250640362,0.8063,3828.6,3828.5,1.31068]
[1760250640564,0.8063,3828.6,3828.5,1.44458]
[1760250644164,0.8063,3828.6,3828.5,1.06838]
[1760250644359,0.8063,3828.6,3828.5,0.70678]
[1760250644664,0.8063,3828.6,3828.5,1.05348]
[1760250646151,0.4673,3828.6,3828.5,1.43188]
[1760250646659,0.8189,3828.6,3828.5,1.43188]
[1760250647363,0.4673,3828.6,3828.5,1.43188]
[1760250647661,0.2389,3828.9,3828.8,0.4617]
[1760250647858,0.2389,3828.9,3828.8,0.8084]
[1760250648966,0.5905,3829.4,3829.3,0.4617]
[1760250649266,0.94432,3829.8,3829.5,0.46965]
[1760250649468,0.4747,3829.8,3829.6,0.46963]
[1760250649659,0.8263,3829.7,3829.6,0.69543]
[1760250650161,0.8263,3829.7,3829.6,0.93133]
[1760250650356,0.8263,3829.7,3829.6,1.27803]
[1760250650758,0.8263,3829.7,3829.6,0.46963]
[1760250651255,0.1319,3829.5,3829.4,0.46967]
[1760250651458,0.2389,3828.7,3828.6,0.8084]
[1760250652562,0.4747,3828.7,3828.6,0.8084]
[1760250652756,0.4747,3828.7,3828.6,1.27816]
[1760250653467,0.3516,3828.6,3828.2,1.85052936]
[1760250653663,0.4747,3828.4,3828.3,1.2782]
[1760250653964,0.8263,3828.4,3828.3,1.2782]
[1760250655270,0.8263,3828.4,3828.3,1.0423]
[1760250656369,0.8263,3828.4,3828.1,0.00280412]
[1760250656863,0.4747,3828.2,3828.1,0.00280412]
[1760250657061,0.8263,3828.2,3828.1,0.00280412]
[1760250658657,0.8263,3828.2,3828.1,0.81120412]
[1760250658861,0.2389,3828.2,3828.1,0.81120412]
[1760250659061,0.8263,3828.6,3828.5,0.5725]
[1760250659259,0.8263,3828.6,3828.1,0.00280412]
[1760250659260,0.4747,3828.6,3828.2,0.3467]
[1760250659463,0.8263,3828.5,3828.4,0.46979]
[1760250660066,0.8263,3828.5,3828.4,0.69559]
[1760250660264,0.4747,3828.9,3828.8,1.27814]
[1760250660459,0.4747,3828.9,3828.5,0.1425]
[1760250660460,0.2389,3829.7,3829.1,0.2359]
[1760250660666,0.4747,3829.7,3829.6,1.27803]
[1760250660869,0.8263,3829.7,3829.6,1.27803]
[1760250661065,0.8263,3829.7,3829.6,0.46963]
[1760250661264,0.4747,3829.7,3829.6,1.04213]
[1760250661460,0.4747,3829.7,3829.6,1.27803]
[1760250661767,0.8263,3829.7,3829.6,1.27803]
[1760250662464,0.8263,3829.7,3829.6,0.46963]
[1760250663162,0.8263,3829.7,3829.6,1.04213]
[1760250663968,0.8263,3829.7,3829.6,0.46963]
[1760250664167,0.8263,3829.7,3829.0,0.1425]
[1760250664358,0.8263,3829.3,3829.2,0.69548]
[1760250664663,0.8289188,3829.9,3829.8,0.5725]
[1760250666371,0.2415188,3829.9,3829.8,0.8084]
[1760250667063,0.0026188,3829.9,3829.8,0.8084]
[1760250667771,0.4747,3830.9,3830.8,0.69529]
[1760250668065,0.2389,3830.1,3830.0,0.715]
[1760250668271,0.8263,3830.1,3830.0,0.46959]
[1760250668769,0.82928025,3830.1,3830.0,1.04452158]
[1760250670864,0.82928025,3830.1,3830.0,1.28042158]
[1760250671569,0.82928025,3830.1,3830.0,0.81083158]
[1760250671770,0.82928025,3830.1,3830.0,0.57493158]
[1760250672759,0.82928025,3830.1,3830.0,0.00243158]
[1760250676568,5.82928025,3830.1,3830.0,0.00243158]
[1760250676774,0.789,3829.6,3829.5,1.04285]
[1760250677165,0.3446,3829.5,3829.3,0.81597]
[1760250677365,0.789,3829.4,3829.3,0.5732]
[1760250677574,0.4444,3829.2,3829.1,1.0429]
[1760250677873,0.789,3829.2,3829.1,0.00264282]
[1760250678375,5.789,3829.2,3829.1,0.00264282]
[1760250679274,0.789,3829.2,3829.1,0.00264282]
[1760250679572,0.222,3829.5,3829.4,0.92206]
[1760250679876,0.4444,3829.5,3829.4,0.92206]
[1760250680075,0.789,3829.5,3829.4,0.92206]
[1760250680272,0.789,3829.5,3829.4,1.26836]
[1760250680576,0.4444,3829.5,3829.4,1.26836]
[1760250680974,0.81421,3829.9,3829.4,1.26836]
[1760250680975,0.222,3829.7,3829.6,1.04144]
[1760250681278,0.22498025,3830.1,3830.0,1.39989]
[1760250681573,0.00298025,3830.1,3830.0,1.39989]
[1760250682078,0.00298025,3830.1,3830.0,6.39989]
[1760250682274,0.222,3830.9,3830.8,1.26819]
[1760250682474,0.3446,3832.2,3831.7,0.3463]
[1760250682770,0.46934,3832.1,3831.5,0.601]
[1760250682975,0.46931,3832.3,3831.6,0.46939]
[1760250683172,0.47232054,3832.3,3831.6,0.81569]
[1760250683366,0.46933,3832.2,3831.6,0.81569]
[1760250683567,0.57916,3832.0,3831.3,0.46943]
[1760250683774,0.1098,3832.0,3831.0,0.46946]
[1760250683974,0.3446,3831.6,3830.5,0.1316]
[1760250684279,0.3446,3831.8,3831.5,0.4694]
[1760250684473,0.3446,3831.8,3831.7,0.3463]
[1760250684674,0.46938,3831.8,3831.4,0.3463]
[1760250684874,0.00301054,3832.3,3831.1,0.46945]
[1760250685174,0.46946,3831.1,3830.6,0.3463]
[1760250685381,0.3446,3830.9,3830.6,0.81581]
[1760250685572,0.46946,3831.1,3830.6,0.81581]
[1760250685777,0.3446,3831.0,3830.6,0.81581]
[1760250686276,0.46946,3831.1,3830.7,0.4695]
[1760250686575,0.3446,3831.2,3830.9,0.3463]
[1760250686778,0.3446,3831.2,3831.1,0.3463]
[1760250687076,0.3446,3831.4,3831.1,0.3463]
[1760250687267,0.1319,3832.0,3831.3,0.81572]
[1760250687578,0.3446,3831.9,3831.3,0.81572]
[1760250688173,0.3446,3831.9,3831.1,0.3463]
[1760250688368,0.3446,3831.9,3831.0,0.1316]
[1760250688369,0.46934,3832.1,3831.6,0.46939]
[1760250688578,0.1319,3832.0,3831.1,0.46946]
[1760250688777,0.3446,3831.2,3830.9,0.46948]
[1760250689075,0.3446,3831.0,3830.7,0.4695]
[1760250689278,0.1098,3831.5,3830.9,0.3463]
[1760250689279,0.3446,3831.2,3830.9,0.3463]
[1760250689684,0.46944,3831.3,3830.9,0.3463]
[1760250689874,0.1098,3831.5,3830.6,0.3463]
[1760250690176,0.3446,3831.6,3831.2,0.46944]
[1760250690481,0.3446,3831.6,3831.5,0.3463]
[1760250690872,0.1319,3832.0,3830.8,0.46949]
[1760250690873,0.3446,3831.2,3830.8,0.46949]
[1760250691082,0.3446,3831.4,3830.8,0.3463]
[1760250691384,0.3446,3831.4,3830.6,0.3463]
[1760250691577,0.3446,3831.4,3830.5,0.46953]
[1760250691786,0.1098,3831.5,3830.5,0.46953]
[1760250691986,0.3446,3830.9,3830.6,0.81581]
[1760250692177,0.3446,3831.4,3830.0,0.4779]
[1760250692377,0.3446,3831.4,3830.0,0.94749]
[1760250692671,0.3446,3830.9,3830.0,0.46959]
[1760250692880,0.81417,3830.2,3829.8,0.81591]
[1760250693180,0.81417,3830.2,3830.0,0.3463]
[1760250693181,0.3446,3830.1,3830.0,0.3463]
[1760250693480,0.3446,3830.3,3830.1,0.46958]
[1760250693682,0.3446,3830.3,3830.1,0.81588]
[1760250693881,0.81416,3830.3,3830.1,0.3463]
[1760250694077,0.3446,3830.8,3829.9,0.4696]
[1760250694283,0.3446,3830.0,3829.5,0.1316]
[1760250694778,0.8142,3830.0,3829.6,0.3463]
[1760250694978,0.3446,3830.3,3830.0,0.46959]
[1760250695185,0.3446,3830.2,3830.0,0.81589]
[1760250695678,0.46956,3830.3,3830.0,0.3463]
[1760250695987,0.3446,3830.1,3830.0,0.3463]
[1760250696379,0.3446,3830.4,3829.6,0.3463]
[1760250696676,0.3446,3830.9,3829.5,0.1316]
[1760250696875,0.1132,3831.0,3829.8,0.46961]
[1760250697076,0.81417,3830.2,3829.9,0.4696]
[1760250697381,0.46957,3830.2,3829.9,0.4696]
[1760250697581,0.3446,3830.0,3829.9,0.4696]
[1760250698085,0.3446,3830.0,3829.9,0.8159]
[1760250698872,0.46951,3830.7,3830.3,0.46956]
[1760250699080,0.3446,3830.5,3830.3,0.3463]
[1760250699379,0.3446,3830.9,3830.3,0.3463]
[1760250699579,0.1132,3831.0,3830.3,0.81585]
[1760250699778,0.3375,3831.0,3830.9,0.46948]
[1760250699979,0.3375,3831.0,3830.9,0.81018]
[1760250700184,0.3375,3831.0,3830.9,0.46948]
[1760250700380,0.3375,3831.0,3830.9,0.81018]
[1760250700578,0.3375,3831.0,3830.9,0.46948]
[1760250700778,0.3375,3831.0,3830.6,0.3407]
[1760250700979,0.3375,3830.8,3830.7,0.46949]
[1760250701477,0.3375,3830.8,3830.7,0.81019]
[1760250701884,0.3382,3831.0,3830.9,0.46948]
[1760250702286,0.3382,3831.0,3830.9,0.82978]
[1760250702487,0.3382,3831.0,3830.9,0.46948]
[1760250702883,1.17351,3831.6,3830.7,0.4695]
[1760250703183,0.3382,3830.9,3830.8,0.46949]
[1760250703486,0.8167,3830.9,3830.8,0.46949]
[1760250705282,0.2432,3830.9,3830.8,1.30859]
[1760250706586,0.8167,3830.9,3830.8,1.30859]
[1760250706786,0.8167,3830.9,3830.8,0.46949]
[1760250707290,0.4785,3830.9,3830.8,1.06529]
[1760250707686,0.8167,3830.9,3830.8,1.06529]
[1760250709289,0.4785,3830.9,3830.8,1.30859]
[1760250710692,0.8167,3830.9,3830.8,1.30859]
[1760250711594,0.1098,3831.5,3830.5,0.46953]
[1760250711595,0.8167,3830.6,3830.5,0.46953]
[1760250711795,0.8167,3830.6,3830.5,1.06533]
[1760250711988,0.8167,3830.6,3830.5,0.46953]
[1760250712897,0.8167,3830.1,3830.0,1.06539]
[1760250713094,0.8167,3830.1,3830.0,0.70509]
[1760250713693,0.8167,3830.1,3829.8,0.46961]
[1760250713894,0.4785,3829.9,3829.8,0.46961]
[1760250714095,0.8167,3829.9,3829.8,0.46961]
[1760250714998,0.8167,3829.9,3829.8,1.06541]
[1760250715595,1.28631,3829.9,3829.6,0.46964]
[1760250715801,0.4785,3829.7,3829.6,1.06544]
[1760250716099,1.30574,3830.5,3829.9,0.46961]
[1760250716100,0.46956,3830.3,3829.9,0.46961]
[1760250716298,0.2432,3830.0,3829.9,0.94841]
[1760250716605,0.4785,3830.0,3829.9,0.94841]
[1760250716807,0.4785,3830.0,3829.9,1.30871]
[1760250717102,0.3382,3830.8,3830.7,0.4695]
[1760250717293,0.8167,3830.8,3830.4,0.46954]
[1760250717496,0.8167,3830.3,3830.2,1.06536]
[1760250719805,0.8167,3830.3,3830.2,0.5958]
[1760250720006,0.8167,3830.3,3829.6,1.85052936]
[1760250720007,0.2432,3829.8,3829.7,0.8391]
[1760250720506,0.8167,3829.8,3829.7,0.5958]
[1760250720713,0.4785,3829.6,3829.5,0.3603]
[1760250721006,0.48139876,3829.6,3829.5,0.8391]
[1760250722102,0.2432,3829.2,3829.1,2.33197218]
[1760250722302,0.2432,3829.2,3829.1,0.84174282]
[1760250724809,0.4785,3829.2,3829.1,0.84174282]
[1760250725009,0.8167,3829.2,3829.1,0.59844282]
[1760250725309,0.8167,3829.2,3829.1,0.00264282]
[1760250725809,0.8167,3828.6,3828.5,0.2355]
[1760250726701,0.8167,3828.6,3828.5,0.23778248]
[1760250727107,0.8167,3828.6,3828.5,0.59808248]
[1760250729002,0.8167,3828.6,3828.5,0.00228248]
[1760250729404,5.8167,3828.6,3828.5,0.00228248]
[1760250729910,0.8067,3828.6,3828.5,0.00228248]
[1760250731004,5.8067,3828.6,3828.5,0.00228248]
[1760250731805,0.465,3828.0,3827.7,0.81157]
[1760250732000,0.465,3827.8,3827.7,1.03137]
[1760250732208,0.465,3827.8,3827.7,1.26667]
[1760250732808,0.465,3827.8,3827.7,1.26940885]
[1760250733113,0.465,3828.2,3828.1,0.68963]
[1760250733304,0.8067,3828.2,3828.1,1.03133]
[1760250734110,0.465,3828.0,3827.9,0.81154]
[1760250734304,0.8067,3828.0,3827.9,0.81154]
[1760250734910,0.8067,3828.0,3827.9,0.5615]
[1760250735112,0.3417,3827.9,3827.7,0.34443885]
[1760250735310,0.8067,3827.8,3827.7,0.56423885]
[1760250736911,0.8067,3827.8,3827.7,0.79953885]
[1760250737213,0.465,3827.8,3827.7,0.79953885]
[1760250738106,0.3417,3828.1,3828.0,1.40794]
[1760250738107,0.8067,3828.1,3828.0,1.40794]
[1760250738308,0.465,3828.1,3828.0,1.40794]
[1760250739607,0.8067,3828.1,3828.0,1.40794]
[1760250740004,0.8067,3829.0,3828.9,0.5615]
[1760250740312,0.5779,3829.0,3828.4,0.46979]
[1760250740509,0.8067,3828.5,3828.4,0.2198]
[1760250740910,0.8067,3828.5,3828.4,0.5615]
[1760250741109,0.8067,3828.5,3828.4,0.7968]
[1760250741513,0.3417,3829.4,3828.5,0.1413]
[1760250741711,0.465,3829.0,3828.9,0.92482]
[1760250742012,0.465,3829.0,3828.9,1.26652]
[1760250742213,0.8067,3829.0,3828.9,1.26652]
[1760250743221,0.8067,3828.4,3828.3,0.8115]
[1760250743810,0.8067,3828.1,3828.0,1.17264]
[1760250744019,0.8067,3828.1,3828.0,0.46984]
[1760250745317,0.8067,3828.1,3828.0,1.03134]
[1760250745616,0.465,3828.1,3828.0,1.40794]
[1760250746017,0.8067,3828.1,3828.0,1.40794]
[1760250746623,0.8067,3828.1,3828.0,1.26664]
[1760250747414,0.8067,3828.1,3828.0,0.46984]
[1760250748718,0.465,3827.9,3827.8,0.46986]
[1760250748914,0.8067,3827.9,3827.7,0.34443885]
[1760250749114,0.8067,3827.8,3827.7,0.00273885]
[1760250751412,0.8067,3827.8,3827.7,0.56423885]
[1760250751617,0.465,3827.8,3827.7,0.79953885]
[1760250752714,0.3417,3828.4,3827.8,0.3417]
[1760250752914,0.8067,3828.4,3828.3,0.2198]
[1760250753120,0.8067,3828.4,3828.3,0.5615]
[1760250753321,0.465,3828.4,3828.3,0.7968]
[1760250754218,0.8067,3828.4,3828.3,0.7968]
[1760250755120,0.8067,3828.4,3828.3,0.5615]
[1760250755715,1.27649,3828.4,3828.1,0.46982]
[1760250755924,0.465,3827.9,3827.8,0.81156]
[1760250756228,0.8067,3827.9,3827.8,0.46986]
[1760250756417,0.465,3827.9,3827.7,0.00273885]
[1760250756622,0.8067,3827.8,3827.7,0.00273885]
[1760250757923,0.8067,3827.8,3827.7,0.56423885]
[1760250758520,0.465,3827.8,3827.7,0.79953885]
[1760250758726,1.17703876,3829.6,3828.3,0.7968]
[1760250758727,0.8067,3828.4,3828.3,0.7968]
[1760250759835,0.7923,3828.8,3828.7,0.2231]
[1760250760031,0.7923,3828.8,3828.7,0.7853]
[1760250763638,0.7923,3828.8,3828.7,0.5614]
[1760250763939,0.3338,3828.7,3828.6,0.46976]
[1760250764236,0.8022,3828.7,3828.6,0.46976]
[1760250766437,1.06868,3828.5,3827.9,0.3415]
[1760250766640,0.8022,3828.0,3827.9,1.03445]
[1760250766834,0.8022,3828.0,3827.9,1.27315]
[1760250767238,0.4684,3828.0,3827.9,1.27315]
[1760250767434,0.2393,3828.0,3827.9,1.27315]
[1760250768043,0.4684,3828.0,3827.9,1.27315]
[1760250768745,0.4684,3828.0,3827.9,0.81135]
[1760250768746,0.8022,3828.0,3827.9,0.81135]
[1760250769041,0.8022,3828.0,3827.9,0.46985]
[1760250769738,0.8022,3828.0,3827.9,0.69295]
[1760250769942,0.8022,3828.0,3827.9,1.03445]
[1760250774343,0.8022,3828.0,3827.9,1.27315]
[1760250774552,0.4684,3828.0,3827.9,1.27315]
[1760250774749,0.2393,3828.0,3827.9,1.27315]
[1760250775046,0.4684,3828.3,3828.2,1.27311]
[1760250775345,0.8022,3828.3,3828.2,1.27311]
[1760250776352,0.8022,3828.3,3828.2,1.03441]
[1760250776850,0.4684,3828.3,3828.2,1.27311]
[1760250777246,0.8022,3828.3,3828.2,1.27311]
[1760250778047,0.4684,3828.3,3828.2,1.27311]
[1760250778346,0.8022,3828.3,3828.2,1.27311]
[1760250779452,0.2393,3828.3,3828.2,1.27311]
[1760250781451,0.4684,3828.3,3828.2,1.27311]
[1760250781751,0.8022,3828.3,3828.2,0.46981]
[1760250782158,0.4684,3828.3,3828.0,0.46983]
[1760250782447,0.8022,3828.1,3828.0,0.46983]
[1760250783953,0.8022,3827.9,3827.8,0.46986]
[1760250789354,0.8022,3827.9,3827.8,0.69296]
[1760250789549,0.8022,3827.9,3827.8,1.03446]
[1760250789755,0.4684,3827.9,3827.8,1.27316]
[1760250791258,0.2324,3828.2,3828.1,1.28083]
[1760250791555,0.2324,3828.2,3828.1,0.46983]
[1760250791556,0.8094,3828.2,3828.1,0.46983]
[1760250791753,0.8094,3828.2,3827.7,2.20576821]
[1760250791754,0.3426,3828.1,3828.0,0.46983]
[1760250791956,0.8094,3828.1,3828.0,0.46983]
[1760250793860,0.4668,3828.1,3828.0,1.42653]
[1760250794056,0.2324,3828.1,3828.0,1.42653]
[1760250795063,0.4668,3828.1,3828.0,1.42653]
[1760250795849,0.8094,3828.6,3828.5,1.28078]
[1760250796057,0.4668,3828.6,3828.5,1.42648]
[1760250796559,0.8094,3828.6,3828.5,1.42648]
[1760250796759,0.4668,3828.6,3828.5,1.42648]
[1760250798258,0.8094,3828.6,3828.5,1.42648]
[1760250799852,0.8094,3829.0,3828.9,1.28073]
[1760250800054,0.4668,3829.0,3828.9,1.28073]
[1760250801058,0.4668,3829.0,3828.5,1.32015]
[1760250801059,0.4668,3829.3,3829.2,1.28069]
[1760250801561,0.2324,3829.3,3829.2,1.28069]
[1760250801756,0.23529876,3829.6,3829.5,1.42635]
[1760250801955,0.00289876,3829.6,3829.5,1.42635]
[1760250802556,0.00289876,3829.6,3829.5,6.42635]
[1760250802759,0.4668,3830.4,3830.3,1.28056]
[1760250803168,0.8094,3830.7,3830.6,0.92802]
[1760250803363,0.8094,3830.7,3830.6,1.28052]
[1760250803761,0.81218253,3830.7,3830.6,1.28364082]
[1760250804263,0.46958253,3830.7,3830.6,1.28364082]
[1760250806560,0.81218253,3830.7,3830.6,1.28364082]
[1760250806864,5.81218253,3830.7,3830.6,0.00312082]
[1760250807366,0.4668,3829.9,3829.8,0.46961]
[1760250807564,0.8094,3829.9,3829.8,0.46961]
[1760250808568,0.8094,3829.9,3829.8,0.00248308]
[1760250808774,1.27901,3829.9,3829.8,0.00248308]
[1760250809067,6.27901,3829.9,3829.8,0.00248308]
[1760250817874,1.17411,3829.7,3828.0,1.99622936]
[1760250818083,0.4668,3828.4,3828.3,1.0503]
[1760250818277,0.4668,3828.4,3828.3,1.2808]
[1760250818477,0.4668,3828.9,3828.8,1.28074]
[1760250818682,0.4668,3829.2,3829.1,1.2807]
[1760250818977,0.4668,3829.2,3829.1,1.28400689]
[1760250819173,0.8094,3829.2,3829.1,1.28400689]
[1760250819378,0.4668,3829.2,3829.1,1.28400689]
[1760250819580,0.2324,3829.2,3829.1,1.28400689]
[1760250820178,0.8036,3829.2,3829.1,1.28400689]
[1760250820376,0.8036,3829.2,3829.1,0.47300689]
[1760250820771,0.4668,3829.2,3829.1,1.28610689]
[1760250820977,0.7834,3829.5,3829.4,0.69787]
[1760250821176,0.7834,3829.5,3829.4,1.06027]
[1760250821485,0.2222,3829.5,3829.4,6.28277]
[1760250821685,0.786,3830.0,3829.9,1.05331]
[1760250822779,0.7902,3830.4,3830.3,0.46956]
[1760250822985,0.7902,3830.4,3830.3,1.05326]
[1760250823280,0.2325,3830.4,3830.3,1.29046]
[1760250824083,0.23528253,3830.7,3830.6,1.05322]
[1760250824280,0.79298253,3830.7,3830.6,0.46952]
[1760250824485,0.3307,3830.2,3830.0,0.46958]
[1760250824786,0.4595,3830.2,3830.1,0.8209]
[1760250825282,0.5632,3830.1,3830.0,0.46958]
[1760250825480,0.7902,3830.1,3830.0,0.46958]
[1760250826190,0.4595,3830.1,3830.0,1.42818]
[1760250826481,0.2325,3830.1,3830.0,1.42818]
[1760250827282,0.00278253,3830.7,3830.0,0.9586]
[1760250827480,0.2325,3830.4,3830.3,0.8209]
[1760250828180,0.4595,3830.2,3830.1,0.83348]
[1760250828385,0.7902,3830.2,3830.1,0.83348]
[1760250828579,0.46228253,3830.7,3830.6,1.29042]
[1760250829886,0.00278253,3830.7,3830.6,6.29042]
[1760250831985,0.79298253,3830.7,3830.6,0.83342]
[1760250832687,0.00278253,3830.7,3830.6,1.29042]
[1760250834682,0.23528253,3830.7,3830.6,1.29042]
[1760250835290,0.00278253,3830.7,3830.6,1.29042]
[1760250835887,0.00278253,3830.7,3830.6,6.29042]
[1760250838088,0.2325,3831.6,3831.5,0.84431]
[1760250838391,0.2325,3831.6,3831.5,1.42801]
[1760250838591,0.4595,3831.6,3831.5,1.42801]
[1760250839184,0.46286945,3831.6,3831.5,1.42801]
[1760250839400,0.79356945,3831.6,3831.5,0.5837]
[1760250839590,0.79356945,3831.6,3831.0,0.5016]
[1760250839788,0.3307,3831.5,3831.4,0.3639]
[1760250839989,0.7902,3831.5,3831.4,0.3639]
[1760250840185,0.7902,3831.5,3831.4,0.5837]
[1760250840587,0.4595,3831.5,3831.4,0.8209]
[1760250840895,0.4595,3831.0,3830.9,1.29037]
[1760250841192,0.7902,3830.9,3830.8,0.3639]
[1760250841787,0.2325,3831.1,3831.0,1.42806]
[1760250841982,0.4595,3830.7,3830.6,1.05322]
[1760250842590,0.4595,3830.7,3830.6,1.29042]
[1760250842987,0.7902,3830.7,3830.6,0.46952]
[1760250843183,0.7902,3830.7,3830.5,0.46953]
[1760250843184,0.3307,3830.6,3830.5,0.46953]
[1760250843389,0.4595,3830.6,3830.5,1.29043]
[1760250843589,0.7902,3830.6,3830.5,1.05323]
[1760250844189,0.4595,3830.6,3830.5,1.29043]
[1760250844498,0.4595,3830.6,3830.5,1.42813]
[1760250845101,0.7902,3830.6,3830.5,1.05323]